bitfinex/quotes_ETHUSD_20250318
["timestamp","ask_amount","ask_price","bid_price","bid_amount"]
[1742325408701,0.3865636,1898.2,1898.0,5.2685]
[1742325409030,2.74199823,1898.2,1897.9,5.26896]
[1742325409928,2.74199823,1898.0,1897.8,10.53833]
[1742325410230,2.74199823,1898.0,1897.9,5.26898]
[1742325410701,16.38713,1898.3,1897.9,5.26898]
[1742325410900,2.74199823,1898.0,1897.9,5.26898]
[1742325416939,3.56039823,1898.0,1897.6,5.26968]
[1742325417140,8.01142823,1897.8,1897.4,5.27027]
[1742325417339,2.74199823,1897.6,1897.4,5.27027]
[1742325417526,2.74199823,1897.6,1897.4,6.492097]
[1742325417735,3.56039823,1897.6,1897.4,6.492097]
[1742325418050,8.83024823,1897.6,1897.3,5.27053]
[1742325418522,3.56039823,1897.6,1897.3,10.54104]
[1742325418720,3.56039823,1897.6,1897.3,5.27051]
[1742325419155,3.56039823,1897.6,1897.3,5.2705]
[1742325419337,3.56039823,1897.6,1897.4,5.27034]
[1742325420461,3.56039823,1897.6,1897.4,5.27025]
[1742325420763,2.74199823,1897.6,1897.4,10.54048]
[1742325420931,2.74199823,1897.6,1897.4,5.27024]
[1742325421141,2.74199823,1897.8,1897.6,5.26969]
[1742325421450,2.74199823,1897.8,1897.5,5.26994]
[1742325421650,2.74199823,1897.8,1897.5,10.53987]
[1742325422161,2.74199823,1897.8,1897.6,5.26972]
[1742325422455,2.74199823,1897.8,1897.6,5.26968]
[1742325422658,2.74199823,1897.8,1897.5,5.27005]
[1742325422862,8.01126823,1897.8,1897.5,5.27005]
[1742325424460,13.28070823,1897.8,1897.4,5.797274]
[1742325424634,8.01126823,1897.8,1897.4,5.797234]
[1742325424834,8.01126823,1897.8,1897.5,5.27009]
[1742325426800,2.74199823,1897.8,1897.5,10.54002]
[1742325426948,2.74199823,1897.8,1897.6,5.26972]
[1742325427150,2.74199823,1897.8,1897.5,6.3766344]
[1742325427395,2.74199823,1897.8,1897.6,5.26976]
[1742325428309,2.74199823,1897.8,1897.5,7.1631344]
[1742325428580,2.74199823,1897.8,1897.5,12.4330344]
[1742325428804,2.74199823,1897.8,1897.6,5.26977]
[1742325429482,3.54659823,1898.0,1897.7,5.26939]
[1742325429701,2.74199823,1898.0,1897.7,10.53873]
[1742325429907,2.74199823,1898.0,1897.8,5.26924]
[1742325430391,13.07150823,1898.1,1897.8,0.7689]
[1742325430550,18.34009823,1898.1,1897.7,10.53864]
[1742325430754,18.34009823,1898.1,1897.6,11.30835]
[1742325430755,8.01086823,1898.0,1897.6,11.30835]
[1742325430955,2.74199823,1897.8,1897.5,16.68006]
[1742325431283,5.26957,1897.7,1897.5,6.14]
[1742325431474,2.74199823,1897.8,1897.5,11.40994]
[1742325431854,8.01138823,1897.8,1897.5,11.40994]
[1742325432376,2.74199823,1897.8,1897.6,5.26979]
[1742325433281,2.74199823,1897.8,1897.5,16.67993]
[1742325433482,2.74199823,1897.8,1897.6,5.26973]
[1742325433682,2.74199823,1897.8,1897.6,10.53942]
[1742325433888,2.74199823,1897.8,1897.6,5.26969]
[1742325434465,2.74199823,1897.8,1897.6,10.53941]
[1742325434684,2.74199823,1898.0,1897.7,6.07853]
[1742325434985,2.74199823,1898.0,1897.8,5.26924]
[1742325435187,8.67264487,1898.2,1897.9,5.26898]
[1742325435188,3.1464331,1898.2,1897.9,5.26898]
[1742325435393,13.4755831,1898.2,1897.9,5.26898]
[1742325435686,13.4755831,1898.2,1897.9,5.26888]
[1742325436491,3.1464331,1898.2,1898.0,5.2687]
[1742325436791,2.74199823,1898.2,1898.0,5.2687]
[1742325437798,2.74199823,1898.2,1897.9,10.53763]
[1742325437993,2.74199823,1898.2,1897.9,11.591393]
[1742325438479,2.74199823,1898.2,1898.0,5.26863]
[1742325438664,2.74199823,1898.2,1897.9,11.591393]
[1742325439164,2.74199823,1898.2,1897.9,11.591433]
[1742325439574,8.01021823,1898.2,1897.9,6.322533]
[1742325439783,8.01021823,1898.2,1897.9,5.26877]
[1742325440286,2.74199823,1898.0,1897.9,5.26877]
[1742325440480,2.74199823,1898.0,1897.8,10.53836]
[1742325440674,5.66957396,1898.2,1897.8,5.26916]
[1742325440888,2.74199823,1898.0,1897.8,5.26916]
[1742325441093,0.8189,1897.9,1897.6,3.0]
[1742325441263,2.74199823,1897.7,1897.6,8.26972]
[1742325442404,2.74199823,1897.7,1897.6,3.0]
[1742325444772,8.01152823,1897.7,1897.6,3.0]
[1742325445188,8.01152823,1897.7,1897.4,3.0]
[1742325445397,5.8789,1897.9,1897.2,0.8161]
[1742325445398,8.01216823,1897.5,1897.2,0.8161]
[1742325445601,2.74199823,1897.3,1897.1,5.27099]
[1742325445780,2.74199823,1897.3,1897.2,3.0]
[1742325445982,2.74199823,1897.3,1897.2,3.827099]
[1742325446584,2.74199823,1897.3,1897.2,3.0]
[1742325446783,2.74199823,1897.3,1897.0,11.41146]
[1742325447072,8.79138823,1897.3,1897.1,3.0]
[1742325447497,3.52069823,1897.3,1897.1,3.0]
[1742325447771,3.52069823,1897.3,1897.1,4.44113]
[1742325447772,0.7787,1897.3,1897.1,4.44113]
[1742325448070,3.52069823,1897.3,1897.1,4.44113]
[1742325449826,3.52069823,1897.3,1897.1,9.71226]
[1742325450427,2.74199823,1897.3,1897.1,9.71226]
[1742325450596,5.8248,1897.5,1897.2,6.242146]
[1742325450797,7.80199823,1897.5,1897.2,6.242026]
[1742325451114,5.06,1897.5,1897.3,5.27064]
[1742325451632,2.74199823,1897.4,1897.2,6.242026]
[1742325452009,2.74199823,1897.4,1897.2,5.2708]
[1742325452730,2.74199823,1897.4,1897.2,3.0]
[1742325454045,2.74199823,1897.4,1897.2,8.27077]
[1742325455949,2.74199823,1897.4,1897.2,3.0]
[1742325456168,6.02804,1897.3,1897.2,3.0]
[1742325456476,5.27101,1897.2,1897.0,3.0]
[1742325456618,2.74199823,1897.1,1896.8,11.41191]
[1742325456813,2.74199823,1897.1,1896.9,3.0]
[1742325457219,8.01328823,1897.1,1896.9,3.0]
[1742325458224,2.74199823,1897.1,1896.9,3.0]
[1742325459174,8.01323823,1897.1,1896.9,3.0]
[1742325460371,6.02888,1897.0,1896.6,5.27255]
[1742325460574,2.74199823,1896.7,1896.5,16.68539]
[1742325460862,2.74199823,1896.7,1896.6,3.0]
[1742325461424,2.74199823,1896.7,1896.6,8.27259]
[1742325462857,2.74199823,1896.7,1896.6,3.0]
[1742325463521,8.79000823,1896.7,1896.6,3.0]
[1742325463944,3.51769823,1896.7,1896.6,3.0]
[1742325464729,2.74199823,1896.7,1896.6,3.0]
[1742325469361,2.74199823,1896.7,1896.6,8.27259]
[1742325470639,0.7681,1897.3,1896.6,9.02459]
[1742325470830,2.74199823,1896.9,1896.6,9.02459]
[1742325471030,2.74199823,1896.9,1896.7,5.27229]
[1742325471630,2.74199823,1896.8,1896.4,0.752]
[1742325471862,2.74199823,1896.6,1896.5,5.27284]
[1742325473235,2.74199823,1896.8,1896.6,8.27258]
[1742325475138,2.74199823,1896.8,1896.6,13.54506]
[1742325475459,2.74199823,1896.8,1896.6,8.27248]
[1742325476067,2.74199823,1896.8,1896.7,5.27231]
[1742325476484,6.34293449,1897.4,1896.7,5.27231]
[1742325476485,0.8323,1897.6,1897.0,5.27129]
[1742325476774,2.74199823,1897.4,1897.1,5.27106]
[1742325476938,2.74199823,1897.4,1897.0,0.8294]
[1742325477139,8.20279896,1897.6,1897.4,5.27032]
[1742325477569,8.20279896,1897.6,1897.3,11.35466]
[1742325477770,8.20279896,1897.6,1897.4,5.27029]
[1742325478067,2.74199823,1897.5,1897.4,5.27029]
[1742325478269,2.74199823,1897.5,1897.3,7.219446]
[1742325478441,2.74199823,1897.5,1897.4,5.27036]
[1742325478839,2.74199823,1897.7,1897.5,5.26983]
[1742325479045,2.74199823,1897.7,1897.6,0.526983]
[1742325479242,8.01152823,1897.7,1897.6,0.526983]
[1742325479546,8.01152823,1897.7,1897.4,5.27026]
[1742325479764,2.74199823,1897.7,1897.5,5.27008]
[1742325480274,2.74199823,1897.7,1897.4,5.27023]
[1742325480488,2.74199823,1897.5,1897.4,8.27023]
[1742325480866,6.09987,1897.8,1897.4,8.27023]
[1742325480867,0.8304,1897.8,1897.5,5.26992]
[1742325481187,8.01152823,1897.7,1897.4,3.0]
[1742325481384,2.74199823,1897.5,1897.4,3.0]
[1742325481773,3.55389823,1897.5,1897.2,6.14]
[1742325482097,2.74199823,1897.3,1897.2,9.14]
[1742325482382,2.74199823,1897.3,1897.2,3.0]
[1742325482987,2.74199823,1897.3,1897.0,5.27134]
[1742325483202,2.74199823,1897.1,1896.9,11.35839]
[1742325483486,2.74199823,1897.1,1897.0,3.0]
[1742325483687,2.74199823,1897.3,1897.0,13.54281]
[1742325483895,5.8729,1897.5,1897.2,5.27072]
[1742325484053,7.80299823,1897.5,1897.2,10.5415]
[1742325484779,7.80299823,1897.5,1897.2,10.54149]
[1742325485792,13.07309823,1897.5,1897.2,5.27072]
[1742325486291,7.80299823,1897.5,1897.2,5.27072]
[1742325486493,7.80299823,1897.5,1897.2,10.54147]
[1742325486655,7.80299823,1897.5,1897.2,5.27072]
[1742325486985,2.74199823,1897.3,1897.2,5.27072]
[1742325487486,2.74199823,1897.3,1897.1,10.54227]
[1742325487812,2.74199823,1897.3,1897.2,5.27092]
[1742325488302,2.74199823,1897.3,1897.1,10.54214]
[1742325489122,2.74199823,1897.3,1897.1,5.27107]
[1742325489463,2.74199823,1897.3,1897.0,8.27143]
[1742325489762,8.01268823,1897.3,1897.0,8.27143]
[1742325489980,2.74199823,1897.3,1897.0,13.54281]
[1742325490158,2.74199823,1897.3,1897.0,8.27138]
[1742325490397,2.74199823,1897.3,1897.0,5.2713]
[1742325490813,2.74199823,1897.3,1897.1,3.0]
[1742325491130,2.74199823,1897.3,1897.2,5.27092]
[1742325491427,2.74199823,1897.5,1897.4,5.27036]
[1742325491929,2.74199823,1897.5,1897.2,6.09943]
[1742325492236,2.74199823,1897.5,1897.2,8.27066]
[1742325492385,5.26998,1897.6,1897.2,13.54143]
[1742325492584,2.74199823,1897.4,1897.2,8.27066]
[1742325493052,2.74199823,1897.4,1897.2,9.794586]
[1742325493255,2.74199823,1897.4,1897.3,5.27064]
[1742325495315,2.74199823,1897.4,1897.2,3.0]
[1742325495552,3.50449823,1897.4,1897.2,3.0]
[1742325496956,8.77487823,1897.4,1897.2,3.0]
[1742325497252,14.04542823,1897.4,1897.1,3.0]
[1742325497459,2.74199823,1897.2,1897.1,3.0]
[1742325497957,8.01291823,1897.2,1897.1,3.0]
[1742325498306,6.06135,1897.1,1896.9,6.14]
[1742325498641,2.74199823,1897.0,1896.8,3.0]
[1742325498862,2.74199823,1897.0,1896.9,8.27175]
[1742325499566,2.74199823,1897.0,1896.9,9.02785]
[1742325499712,2.74199823,1897.2,1897.0,5.27148]
[1742325500763,2.74199823,1897.2,1896.9,14.2995]
[1742325501056,2.74199823,1897.2,1897.0,5.27146]
[1742325502449,8.01183823,1897.6,1897.0,5.27146]
[1742325502450,0.7899,1897.6,1897.0,6.701281]
[1742325502652,2.74199823,1897.6,1897.3,5.27064]
[1742325502817,3.14651648,1897.7,1897.4,5.27027]
[1742325503141,0.40451825,1897.7,1897.5,10.53978]
[1742325503348,3.53189823,1897.8,1897.5,5.26988]
[1742325504182,0.3989564,1897.8,1897.6,10.5394]
[1742325504324,0.3989564,1897.8,1897.7,8.26953]
[1742325504524,2.74199823,1897.9,1897.7,13.53891]
[1742325504874,2.74199823,1898.1,1897.9,5.26884]
[1742325505055,2.74199823,1898.1,1897.9,10.53764]
[1742325505377,2.74199823,1898.1,1898.0,5.2687]
[1742325505649,2.74199823,1898.2,1898.0,5.2687]
[1742325505815,3.13036813,1898.3,1898.1,5.26838]
[1742325506015,0.3883699,1898.3,1898.1,5.26821]
[1742325506220,5.059,1898.4,1898.2,5.26814]
[1742325506423,7.80099823,1898.4,1898.2,5.26814]
[1742325506616,22.70791,1898.7,1898.1,5.26821]
[1742325506617,23.50881,1898.7,1898.1,0.8068]
[1742325506850,7.80099823,1898.7,1898.5,5.26721]
[1742325507223,7.80099823,1898.7,1898.4,5.26734]
[1742325507422,8.19297627,1898.7,1898.4,10.53479]
[1742325507625,8.19297627,1898.7,1898.5,5.26729]
[1742325508123,8.19297627,1898.7,1898.5,10.53443]
[1742325508346,8.19297627,1898.7,1898.5,5.26714]
[1742325508652,8.19297627,1898.7,1898.3,3.0]
[1742325508854,8.19297627,1898.7,1898.5,5.2672]
[1742325509358,8.19297627,1898.7,1898.5,5.26715]
[1742325510560,8.19297627,1898.7,1898.5,10.53432]
[1742325510733,8.19297627,1898.7,1898.5,5.26715]
[1742325512079,3.13397627,1898.7,1898.5,5.26715]
[1742325513046,3.13397627,1898.7,1898.4,6.03237]
[1742325513246,3.13397627,1898.7,1898.4,6.03219]
[1742325513447,3.13397627,1898.7,1898.5,5.26728]
[1742325515461,2.74199823,1898.7,1898.6,5.26703]
[1742325515838,0.38699015,1898.8,1898.6,5.26703]
[1742325516047,2.74199823,1899.0,1898.8,5.26635]
[1742325516251,2.74199823,1899.0,1898.7,6.01713]
[1742325516839,2.74199823,1899.0,1898.8,5.26633]
[1742325517391,2.74199823,1899.0,1898.7,6.01713]
[1742325517544,2.74199823,1899.0,1898.7,11.28369]
[1742325517741,2.74199823,1899.0,1898.8,5.26647]
[1742325518173,8.00795823,1899.0,1898.7,3.7506]
[1742325518339,2.74199823,1898.8,1898.7,3.7506]
[1742325519347,2.74199823,1898.8,1898.7,9.01736]
[1742325520972,2.74199823,1898.8,1898.7,3.0]
[1742325521175,2.74199823,1898.8,1898.4,6.14]
[1742325521176,5.26712,1898.6,1898.4,6.14]
[1742325521355,2.74199823,1898.6,1898.5,3.0]
[1742325521558,2.74199823,1898.6,1898.5,8.26731]
[1742325523074,2.74199823,1898.7,1898.5,3.0]
[1742325523282,2.74199823,1898.7,1898.5,8.26717]
[1742325523445,2.74199823,1898.7,1898.6,8.26703]
[1742325523651,2.74199823,1898.8,1898.6,8.26703]
[1742325524159,8.00850823,1898.8,1898.6,3.0]
[1742325524553,2.74199823,1898.8,1898.6,3.0]
[1742325524979,8.00849823,1898.8,1898.6,3.0]
[1742325525177,5.26731,1898.5,1898.4,6.14]
[1742325525365,5.26771,1898.4,1898.0,6.04953]
[1742325525559,5.26771,1898.4,1897.8,6.14]
[1742325525560,2.74199823,1898.2,1897.9,5.26894]
[1742325525756,2.74199823,1898.0,1897.9,1.745916]
[1742325526150,2.74199823,1898.0,1897.9,4.745916]
[1742325526351,2.74199823,1898.2,1897.9,10.014896]
[1742325526766,2.74199823,1898.2,1897.9,15.283706]
[1742325527479,2.74199823,1898.2,1897.9,10.014726]
[1742325527649,8.01016823,1898.2,1897.9,10.014726]
[1742325527848,8.41395342,1898.2,1897.9,10.014726]
[1742325528080,3.14578342,1898.2,1897.9,10.014726]
[1742325528751,8.41398342,1898.2,1897.9,10.014726]
[1742325528952,2.74199823,1898.0,1897.9,3.0]
[1742325529955,3.14578342,1898.2,1897.9,8.26888]
[1742325530183,3.14578342,1898.2,1898.1,3.0]
[1742325530678,2.74199823,1898.2,1898.1,3.0]
[1742325532387,8.01030823,1898.2,1897.9,3.0]
[1742325532681,13.27867823,1898.2,1897.9,3.0]
[1742325533085,2.74199823,1898.0,1897.8,0.8331]
[1742325533256,8.01080823,1898.0,1897.8,3.0]
[1742325533853,5.26902,1897.9,1897.7,4.03650483]
[1742325534077,13.27965823,1898.0,1897.7,1.03650483]
[1742325534385,5.26904,1897.9,1897.7,3.0]
[1742325534586,2.74199823,1897.8,1897.7,3.0]
[1742325534782,5.26969,1897.7,1897.4,0.8256]
[1742325534989,2.74199823,1897.6,1897.4,5.96691]
[1742325535187,2.74199823,1897.6,1897.5,3.0]
[1742325535390,8.76820823,1897.8,1897.5,3.0]
[1742325535990,2.74199823,1897.6,1897.5,3.0]
[1742325536189,2.74199823,1897.6,1897.3,5.2706]
[1742325536367,2.74199823,1897.6,1897.3,6.40731]
[1742325536563,2.74199823,1897.4,1897.1,5.27118]
[1742325536770,2.74199823,1897.2,1897.0,5.27138]
[1742325537580,2.74199823,1897.2,1897.1,3.0]
[1742325537786,2.74199823,1897.2,1896.9,5.27175]
[1742325537957,2.74199823,1897.2,1896.9,11.767085]
[1742325538162,2.74199823,1897.2,1897.0,5.27133]
[1742325538373,2.74199823,1897.2,1897.1,3.0]
[1742325538956,2.74199823,1897.2,1897.1,5.2712]
[1742325539220,3.49869823,1897.4,1897.1,5.27106]
[1742325539489,3.49869823,1897.4,1897.1,13.54212]
[1742325539689,3.49869823,1897.4,1897.1,9.625272]
[1742325540059,3.49869823,1897.4,1897.1,14.896292]
[1742325540261,10.32621,1897.5,1897.1,14.896292]
[1742325540262,10.32621,1897.5,1897.2,5.27091]
[1742325540459,2.74199823,1897.4,1897.2,5.27091]
[1742325541095,9.00534539,1897.6,1897.3,5.27053]
[1742325541395,2.74199823,1897.6,1897.4,5.27015]
[1742325541761,2.74199823,1897.6,1897.5,5.27009]
[1742325542007,2.74199823,1897.6,1897.4,5.27015]
[1742325542493,2.74199823,1897.6,1897.4,5.27024]
[1742325542892,2.74199823,1897.6,1897.4,10.54045]
[1742325543103,2.74199823,1897.6,1897.5,5.27009]
[1742325543475,0.3957906,1897.8,1897.6,5.26979]
[1742325543671,2.74199823,1897.9,1897.6,5.26958]
[1742325544603,8.01106823,1897.9,1897.5,5.27006]
[1742325544779,8.01106823,1897.9,1897.4,6.400995]
[1742325544780,2.74199823,1897.7,1897.4,6.400995]
[1742325544983,8.82773823,1897.7,1897.4,6.400995]
[1742325545500,6.08567,1897.7,1897.3,0.7667]
[1742325545705,2.74199823,1897.5,1897.3,6.03715]
[1742325546311,8.82766823,1897.7,1897.4,5.27035]
[1742325546609,3.55809823,1897.7,1897.4,5.27023]
[1742325546779,3.55809823,1897.7,1897.4,5.2702]
[1742325547171,8.82778823,1897.7,1897.3,6.03718]
[1742325547370,8.82778823,1897.7,1897.4,5.27028]
[1742325547812,8.82778823,1897.7,1897.3,6.940898]
[1742325548508,8.82778823,1897.7,1897.4,5.27028]
[1742325548685,14.09751823,1897.7,1897.3,6.940898]
[1742325548887,8.82778823,1897.7,1897.3,6.940898]
[1742325549090,8.82778823,1897.7,1897.4,5.27035]
[1742325549270,2.74199823,1897.5,1897.3,5.27039]
[1742325549476,2.74199823,1897.5,1897.2,3.0]
[1742325549808,2.74199823,1897.3,1897.2,3.0]
[1742325550171,2.74199823,1897.5,1897.2,0.827108]
[1742325550372,6.03959,1897.6,1897.2,5.27064]
[1742325550810,8.78158823,1897.6,1897.3,3.0]
[1742325551312,5.27009,1897.5,1897.3,3.0]
[1742325551606,2.74199823,1897.4,1897.3,3.0]
[1742325552703,8.01235823,1897.4,1897.1,5.27115]
[1742325553013,2.74199823,1897.2,1897.0,8.27144]
[1742325553207,2.74199823,1897.4,1897.1,5.27108]
[1742325553387,2.74199823,1897.4,1897.2,5.27088]
[1742325553582,2.74199823,1897.6,1897.3,5.27064]
[1742325554010,8.01180823,1897.6,1897.3,5.27064]
[1742325554252,13.28179823,1897.6,1897.2,11.3072]
[1742325554407,2.74199823,1897.6,1897.2,0.7655]
[1742325554801,8.01182823,1897.6,1897.3,5.27046]
[1742325555389,5.26953,1897.7,1897.3,5.2704]
[1742325555593,2.74199823,1897.7,1897.5,5.27003]
[1742325556199,2.74199823,1897.7,1897.5,5.27005]
[1742325556382,2.74199823,1897.7,1897.5,10.53993]
[1742325556583,8.98343706,1897.9,1897.6,10.53962]
[1742325556785,2.74199823,1897.9,1897.7,5.24951]
[1742325557012,2.74199823,1898.2,1897.9,5.26888]
[1742325557316,2.74199823,1898.2,1897.9,10.53767]
[1742325557812,2.74199823,1898.2,1898.1,5.26842]
[1742325558712,10.3256,1898.4,1898.0,5.26867]
[1742325558713,2.74199823,1898.4,1898.0,5.26858]
[1742325558918,2.74199823,1898.4,1898.3,5.2678]
[1742325559305,6.09634,1898.8,1898.4,5.26741]
[1742325559501,2.74199823,1898.7,1898.5,5.26711]
[1742325559819,2.74199823,1898.7,1898.5,6.03998]
[1742325560291,10.32423,1898.9,1898.5,6.03998]
[1742325560292,2.74199823,1898.9,1898.7,5.26674]
[1742325560613,2.74199823,1899.1,1898.8,10.53272]
[1742325560812,2.74199823,1899.1,1898.8,10.53268]
[1742325561222,2.74199823,1899.1,1898.8,5.26633]
[1742325561808,5.26499,1899.4,1898.9,0.7729]
[1742325562000,2.74199823,1899.2,1898.9,5.26609]
[1742325562319,2.74199823,1899.2,1898.9,5.26602]
[1742325562619,2.74199823,1899.0,1898.9,5.26602]
[1742325562988,2.74199823,1899.0,1898.8,10.5328]
[1742325563189,2.74199823,1899.0,1898.8,13.53271]
[1742325563601,2.74199823,1899.0,1898.9,5.2662]
[1742325564001,2.74199823,1899.0,1898.8,8.26634]
[1742325564819,2.74199823,1899.0,1898.8,3.0]
[1742325565307,3.62569505,1899.0,1898.8,3.0]
[1742325565489,8.00800823,1899.0,1898.8,3.0]
[1742325565918,13.27419823,1899.0,1898.8,3.0]
[1742325566220,2.74199823,1899.0,1898.8,3.0]
[1742325566520,2.74199823,1899.0,1898.8,8.26638]
[1742325567510,2.74199823,1899.0,1898.8,3.0]
[1742325567715,2.74199823,1899.0,1898.8,8.26646]
[1742325569527,2.74199823,1899.0,1898.9,5.2662]
[1742325569702,7.79899823,1899.2,1898.9,10.53224]
[1742325569898,2.74199823,1899.2,1898.9,5.26604]
[1742325570101,2.74199823,1899.2,1899.0,5.26574]
[1742325570439,2.74199823,1899.4,1899.1,5.26565]
[1742325570740,2.74199823,1899.2,1899.1,3.0]
[1742325572991,2.74199823,1899.2,1899.1,8.26565]
[1742325574127,2.74199823,1899.2,1899.1,3.0]
[1742325574497,2.74199823,1899.2,1899.1,8.26565]
[1742325575019,5.26491,1899.4,1899.1,8.2655]
[1742325575020,2.74199823,1899.4,1899.1,8.2655]
[1742325575222,2.74199823,1899.4,1899.2,5.26534]
[1742325575606,2.74199823,1899.4,1899.1,13.53117]
[1742325575813,2.74199823,1899.4,1899.1,3.0]
[1742325576130,2.74199823,1899.2,1899.1,3.0]
[1742325578536,10.71535363,1899.5,1899.1,3.0]
[1742325578739,2.74199823,1899.4,1899.1,8.26554]
[1742325578904,8.00683823,1899.4,1899.1,8.26554]
[1742325580338,2.74199823,1899.4,1899.1,13.53107]
[1742325580545,2.74199823,1899.4,1899.1,8.26553]
[1742325581045,2.74199823,1899.2,1899.1,3.0]
[1742325583749,2.74199823,1899.2,1899.1,8.26565]
[1742325585115,2.74199823,1899.2,1899.1,3.0]
[1742325586249,2.74199823,1899.2,1899.1,8.26565]
[1742325586848,0.8121,1899.6,1899.1,3.8241]
[1742325587149,7.79499823,1899.5,1899.2,5.26522]
[1742325587552,2.74199823,1899.5,1899.2,5.26522]
[1742325587747,2.74199823,1899.3,1899.1,9.08969]
[1742325587953,2.74199823,1899.3,1899.1,14.35521]
[1742325588426,2.74199823,1899.3,1899.1,9.08965]
[1742325588619,2.74199823,1899.3,1899.1,9.08964]
[1742325588815,2.74199823,1899.3,1899.1,14.35518]
[1742325589015,2.74199823,1899.2,1899.1,3.0]
[1742325589269,5.26582,1899.1,1898.8,3.0]
[1742325589427,2.74199823,1898.9,1898.8,3.0]
[1742325590155,2.74199823,1899.0,1898.8,3.0]
[1742325590355,8.00800823,1899.0,1898.8,3.0]
[1742325591146,5.26635,1898.9,1898.6,11.40695]
[1742325591320,8.00861823,1898.8,1898.5,6.31621308]
[1742325591521,2.74199823,1898.6,1898.5,1.04901308]
[1742325591723,2.74199823,1898.6,1898.5,4.04901308]
[1742325592138,3.55809823,1898.6,1898.2,5.26801]
[1742325592453,2.74199823,1898.4,1898.3,5.26787]
[1742325592668,2.74199823,1898.4,1898.3,8.26787]
[1742325593462,2.74199823,1898.6,1898.5,5.26731]
[1742325593634,2.74199823,1898.6,1898.4,8.2674]
[1742325593835,2.74199823,1898.6,1898.5,5.26731]
[1742325595138,2.74199823,1898.6,1898.4,9.0943]
[1742325595355,2.74199823,1898.6,1898.4,3.0]
[1742325595527,2.74199823,1898.6,1898.5,5.26731]
[1742325595743,5.053,1898.7,1898.6,5.26703]
[1742325595744,7.79499823,1898.7,1898.6,5.26703]
[1742325597149,7.79499823,1898.7,1898.5,6.06844]
[1742325597358,7.79499823,1898.7,1898.5,5.26714]
[1742325597566,7.79499823,1898.7,1898.5,10.53433]
[1742325597865,7.79499823,1898.7,1898.5,5.26714]
[1742325598947,7.79499823,1898.7,1898.6,5.26703]
[1742325599661,7.79499823,1898.7,1898.5,5.26714]
[1742325600372,7.79499823,1898.7,1898.5,10.53432]
[1742325600692,7.79499823,1898.7,1898.5,5.26714]
[1742325600970,7.79499823,1898.7,1898.4,8.26757]
[1742325601159,8.00930823,1898.5,1898.3,6.14]
[1742325601335,2.74199823,1898.5,1898.3,6.14]
[1742325601941,2.74199823,1898.5,1898.3,11.40784]
[1742325602151,2.74199823,1898.5,1898.3,11.40775]
[1742325602375,2.74199823,1898.5,1898.4,5.26759]
[1742325603946,7.79499823,1898.7,1898.5,5.2673]
[1742325604143,2.74199823,1898.7,1898.6,5.26703]
[1742325604756,2.74199823,1898.7,1898.5,5.26709]
[1742325604944,2.74199823,1898.7,1898.6,5.26703]
[1742325605346,2.74199823,1898.7,1898.5,5.26709]
[1742325605567,2.74199823,1898.7,1898.6,5.26703]
[1742325606571,2.74199823,1898.7,1898.6,8.26703]
[1742325608346,7.79599823,1898.9,1898.7,5.26654]
[1742325608550,3.57399823,1899.2,1898.9,5.26602]
[1742325608753,2.74199823,1899.3,1899.1,5.26565]
[1742325609084,5.054,1899.4,1899.2,10.53055]
[1742325609257,7.79599823,1899.4,1899.2,10.53055]
[1742325609463,2.74199823,1899.4,1899.3,5.26509]
[1742325610173,2.74199823,1899.4,1899.3,8.26509]
[1742325613359,2.74199823,1899.5,1899.4,5.26465]
[1742325613890,5.886,1899.6,1899.5,5.26454]
[1742325614070,5.886,1899.6,1899.4,5.26474]
[1742325614311,2.74199823,1899.5,1899.4,5.26474]
[1742325615485,6.02684,1899.8,1899.4,5.26467]
[1742325615693,2.74199823,1899.6,1899.4,8.26467]
[1742325615861,2.74199823,1899.6,1899.4,8.26466]
[1742325616189,2.74199823,1899.6,1899.5,5.26454]
[1742325616392,0.7631,1899.8,1899.5,5.26454]
[1742325616685,2.74199823,1899.9,1899.6,0.526454]
[1742325616887,2.74199823,1899.9,1899.8,8.26371]
[1742325617255,0.8037,1900.2,1899.9,5.26336]
[1742325617457,2.74199823,1900.3,1900.0,8.26306]
[1742325617652,2.74199823,1900.3,1900.1,5.26284]
[1742325617876,2.74199823,1900.3,1900.1,5.26271]
[1742325618098,7.79499823,1900.6,1900.4,5.26192]
[1742325618392,2.74199823,1900.6,1900.4,10.52372]
[1742325618570,2.74199823,1900.6,1900.4,5.26184]
[1742325618769,2.74199823,1900.6,1900.5,5.26177]
[1742325618975,2.74199823,1900.6,1900.4,5.26184]
[1742325619691,2.74199823,1900.6,1900.4,10.52376]
[1742325619872,2.74199823,1900.6,1900.5,5.26177]
[1742325620068,2.74199823,1900.6,1900.3,5.26227]
[1742325620271,2.74199823,1900.4,1900.2,6.07512]
[1742325620491,2.74199823,1900.4,1900.2,0.8127]
[1742325620679,2.74199823,1900.4,1900.2,3.0]
[1742325621062,2.74199823,1900.4,1900.1,11.40277]
[1742325622667,5.26217,1900.4,1900.1,6.14]
[1742325622897,5.26315,1900.0,1899.8,0.8069]
[1742325623068,2.74199823,1899.9,1899.8,8.26371]
[1742325623392,2.74199823,1900.3,1900.0,5.26312]
[1742325623761,0.7775,1900.4,1900.1,5.26278]
[1742325623968,2.74199823,1900.3,1900.1,5.26278]
[1742325624593,2.74199823,1900.3,1900.0,0.828]
[1742325624795,2.74199823,1900.1,1900.0,3.0]
[1742325625397,2.74199823,1900.1,1900.0,8.26315]
[1742325625699,2.74199823,1900.3,1900.0,10.00906917]
[1742325625888,2.74199823,1900.3,1900.0,8.26315]
[1742325626598,2.74199823,1900.1,1900.0,3.0]
[1742325626899,8.00487823,1900.1,1900.0,3.0]
[1742325627097,2.74199823,1900.1,1900.0,3.0]
[1742325629795,2.74199823,1900.1,1900.0,8.26315]
[1742325630266,0.7933,1900.2,1900.0,8.26315]
[1742325630469,3.53529823,1900.2,1900.0,8.26315]
[1742325632314,2.74199823,1900.2,1900.1,0.1134554]
[1742325632816,5.8469,1900.4,1900.1,5.3763354]
[1742325633136,2.74199823,1900.3,1900.2,5.26247]